[Event "FIDE World Rapid-ch Open 2018"]
[White "Frolyanov, Dmitry"]
[Black "Vastrukhin, Oleg"]
[Site "St. Petersburg"]
[Round "4.59"]
[Annotator "ChessBase"]
[Result "1-0"]
[Date "2018.12.26"]
[WhiteElo "2517"]
[BlackElo "2413"]
[PlyCount "91"]
[TimeControl "900+10"]

1. e4 {[%emt 0:0:0]} g6 {[%emt 0:0:0]} 2. d4 {[%emt 0:0:0]} Bg7 {[%emt 0:0:0]} 3. Nc3 {[%emt 0:0:0]} c6 {[%emt 0:0:0]} 4. f4 {[%emt 0:0:3]} d5 {[%emt 0:0:1]
} 5. e5 {[%emt 0:0:3]} Nh6 {[%emt 0:0:2]} 6. Be3 {[%emt 0:0:0]} f6 {[%emt 0:0:23]} 7. Qd2 {[%emt 0:0:17]} 0-0 {[%emt 0:3:39]} 8. 0-0-0 {[%emt 0:0:9]} Ng4 {[%emt 0:0:42]} 9. Nf3 {[%emt 0:0:23]} Nxe3 {[%emt 0:0:0]} 10. Qxe3 {[%emt 0:0:3]} b5 {[%emt 0:0:14]} 11. Kb1 {[%emt 0:0:39]} Nd7 {[%emt 0:0:30]} 12. h4 {[%emt 0:1:45]} Nb6 {[%emt 0:0:31]} 13. h5 {[%emt 0:0:0]} b4 {[%emt 0:1:31]} 14. Ne2 {[%emt 0:0:4]} Nc4 {[%emt 0:1:35]} 15. Qf2 {[%emt 0:0:7]} Bg4 {[%emt 0:1:43]} 16. hxg6 {[%emt 0:1:1]} hxg6 {[%emt 0:0:1]
} 17. Nc1 {[%emt 0:1:7]} Qd7 {[%emt 0:2:15]} 18. Bd3 {[%emt 0:0:0]} Kf7 {[%emt 0:0:22]} 19. Rde1 {[%emt 0:0:56]} Rh8 {[%emt 0:2:30]} 20. Nh4 {[%emt 0:0:29]} Rxh4 {[%emt 0:0:21]} 21. Rxh4 {[%emt 0:0:5]} Qc8 {[%emt 0:0:49]
} 22. Qg3 {[%emt 0:2:33]} f5 {[%emt 0:0:7]} 23. e6+ {[%emt 0:0:0]} Ke8 {[%emt 0:0:3]} 24. Bxc4 {[%emt 0:0:57]} dxc4 {[%emt 0:0:2]} 25. Rxg4 {[%emt 0:0:8]} fxg4 {[%emt 0:0:1]} 26. Qxg4 {[%emt 0:0:3]} Kd8 {[%emt 0:0:14]
} 27. Qxg6 {[%emt 0:0:20]} Bf6 {[%emt 0:0:18]} 28. Qe4 {[%emt 0:0:26]
} Kc7 {[%emt 0:0:10]} 29. d5 {[%emt 0:0:18]} Qa6 {[%emt 0:0:0]} 30. dxc6 {[%emt 0:0:44]} Rd8 {[%emt 0:0:14]} 31. Qe2 {[%emt 0:1:33]} Qxc6 {[%emt 0:0:20]} 32. g4 {[%emt 0:0:19]} a5 {[%emt 0:0:10]} 33. g5 {[%emt 0:0:4]
} Bd4 {[%emt 0:0:2]} 34. Qe4 {[%emt 0:0:51]} Qc5 {[%emt 0:0:0]} 35. Rd1 {[%emt 0:0:5]} a4 {[%emt 0:0:7]} 36. Ne2 {[%emt 0:0:6]} Bg7 {[%emt 0:0:10]} 37. Rxd8 {[%emt 0:0:2]} Kxd8 {[%emt 0:0:1]} 38. Qa8+ {[%emt 0:0:56]
} Kc7 {[%emt 0:0:1]} 39. Qxa4 {[%emt 0:0:3]} Qe3 {[%emt 0:0:0]} 40. Nc1 {[%emt 0:0:15]} Qd2 {[%emt 0:0:16]} 41. Qa7+ {[%emt 0:0:10]} Kc6 {[%emt 0:0:8]} 42. Qxe7 {[%emt 0:0:4]} Bd4 {[%emt 0:0:2]} 43. Qd7+ {[%emt 0:0:8]
} Kb6 {[%emt 0:0:4]} 44. e7 {[%emt 0:0:11]} b3 {[%emt 0:0:2]
} 45. axb3 {[%emt 0:0:8]} cxb3 {[%emt 0:0:4]} 46. Nxb3 {[%emt 0:0:5]} 1-0

[Event "FIDE World Rapid-ch Open 2018"]
[White "Bazeev, German"]
[Black "Iljiushenok, Ilia"]
[Site "St. Petersburg"]
[Round "4.60"]
[Annotator "ChessBase"]
[Result "1-0"]
[Date "2018.12.26"]
[WhiteElo "2416"]
[BlackElo "2533"]
[PlyCount "89"]
[TimeControl "900+10"]

1. d4 {[%emt 0:0:0]} Nf6 {[%emt 0:0:0]} 2. Nf3 {[%emt 0:0:0]} g6 {[%emt 0:0:0]
} 3. c4 {[%emt 0:0:0]} Bg7 {[%emt 0:0:2]} 4. Nc3 {[%emt 0:0:0]} 0-0 {[%emt 0:0:4]} 5. Bg5 {[%emt 0:0:0]} c5 {[%emt 0:0:10]} 6. Bxf6 {[%emt 0:0:25]
} Bxf6 {[%emt 0:0:20]} 7. dxc5 {[%emt 0:0:35]} Na6 {[%emt 0:0:0]} 8. Qd2 {[%emt 0:0:50]} Nxc5 {[%emt 0:0:5]} 9. h4 {[%emt 0:0:2]} h5 {[%emt 0:3:3]
} 10. Rd1 {[%emt 0:1:42]} d6 {[%emt 0:0:29]} 11. g3 {[%emt 0:0:0]} Be6 {[%emt 0:0:26]} 12. b3 {[%emt 0:1:29]} a6 {[%emt 0:5:13]} 13. Bg2 {[%emt 0:0:12]} Rb8 {[%emt 0:0:49]} 14. Nd4 {[%emt 0:0:11]} Bd7 {[%emt 0:0:3]
} 15. 0-0 {[%emt 0:0:40]} Bg7 {[%emt 0:0:4]} 16. b4 {[%emt 0:0:0]} Ne6 {[%emt 0:0:35]} 17. Nb3 {[%emt 0:0:51]} Rc8 {[%emt 0:1:7]} 18. c5 {[%emt 0:0:53]} Bc6 {[%emt 0:1:40]} 19. Bxc6 {[%emt 0:0:29]} bxc6 {[%emt 0:1:21]
} 20. cxd6 {[%emt 0:0:32]} exd6 {[%emt 0:0:1]} 21. Ne4 {[%emt 0:0:1]
} d5 {[%emt 0:0:10]} 22. Nec5 {[%emt 0:0:1]} Nxc5 {[%emt 0:0:0]} 23. Nxc5 {[%emt 0:0:2]} Ra8 {[%emt 0:0:20]} 24. Rc1 {[%emt 0:0:33]} Re8 {[%emt 0:0:29]} 25. e3 {[%emt 0:0:39]} Qb6 {[%emt 0:0:15]} 26. Nb3 {[%emt 0:0:1]
} Rab8 {[%emt 0:0:10]} 27. a3 {[%emt 0:0:9]} Re4 {[%emt 0:0:0]} 28. Rc2 {[%emt 0:0:30]} Rd8 {[%emt 0:0:8]} 29. Na5 {[%emt 0:0:16]} Re6 {[%emt 0:0:14]} 30. Rfc1 {[%emt 0:0:4]} Rdd6 {[%emt 0:0:10]} 31. Qd3 {[%emt 0:0:26]
} Kh7 {[%emt 0:0:24]} 32. Nb3 {[%emt 0:0:5]} Re8 {[%emt 0:0:0]} 33. Nd4 {[%emt 0:0:42]} Rc8 {[%emt 0:0:8]} 34. Nf3 {[%emt 0:0:10]} a5 {[%emt 0:0:17]} 35. Rb1 {[%emt 0:0:42]} axb4 {[%emt 0:0:2]} 36. axb4 {[%emt 0:0:1]
} c5 {[%emt 0:0:10]} 37. Rxc5 {[%emt 0:0:1]} Rxc5 {[%emt 0:0:0]} 38. bxc5 {[%emt 0:0:2]} Qxc5 {[%emt 0:0:3]} 39. Rb7 {[%emt 0:0:32]} Kg8 {[%emt 0:0:11]} 40. Ng5 {[%emt 0:0:13]} Qc1+ {[%emt 0:0:31]} 41. Kg2 {[%emt 0:0:15]
} Qc6 {[%emt 0:0:10]} 42. Rxf7 {[%emt 0:0:47]} d4+ {[%emt 0:0:0]} 43. e4 {[%emt 0:0:6]} Bf6 {[%emt 0:0:11]} 44. Qb3 {[%emt 0:0:12]} Qb6 {[%emt 0:0:16]} 45. Rf8+ {[%emt 0:0:6]} 1-0

[Event "FIDE World Rapid-ch Open 2018"]
[White "Van Foreest, Jorden"]
[Black "Lintchevski, Daniil"]
[Site "St. Petersburg"]
[Round "4.61"]
[Annotator "ChessBase"]
[Result "1/2-1/2"]
[Date "2018.12.26"]
[WhiteElo "2614"]
[BlackElo "2516"]
[PlyCount "88"]
[TimeControl "900+10"]

1. e4 {[%emt 0:0:0]} c5 {[%emt 0:0:0]} 2. Nf3 {[%emt 0:0:0]} e6 {[%emt 0:0:0]} 3. g3 {[%emt 0:0:14]} d5 {[%emt 0:0:3]} 4. exd5 {[%emt 0:0:4]} exd5 {[%emt 0:0:1]} 5. d4 {[%emt 0:0:6]} Nc6 {[%emt 0:0:22]} 6. Bg2 {[%emt 0:0:4]
} Bg4 {[%emt 0:0:3]} 7. 0-0 {[%emt 0:0:9]} cxd4 {[%emt 0:0:0]} 8. h3 Bxf3 {[%emt 0:0:2]} 9. Qxf3 {[%emt 0:0:42]} Nf6 {[%emt 0:0:7]} 10. Bg5 {[%emt 0:0:52]} Be7 {[%emt 0:0:3]} 11. Bxf6 {[%emt 0:1:48]} Bxf6 12. Re1+ {[%emt 0:0:12]} Ne7 {[%emt 0:1:0]} 13. Qxd5 {[%emt 0:0:2]} Qxd5 {[%emt 0:0:40]
} 14. Bxd5 {[%emt 0:0:3]} 0-0 {[%emt 0:0:7]} 15. Be4 {[%emt 0:0:21]
} Nc8 {[%emt 0:0:0]} 16. Nd2 {[%emt 0:0:50]} Nd6 {[%emt 0:0:0]} 17. Bd3 {[%emt 0:0:2]} Rfe8 {[%emt 0:0:54]} 18. Kg2 g6 19. h4 {[%emt 0:0:0]} Kg7 {[%emt 0:0:35]} 20. a4 {[%emt 0:0:59]} b6 {[%emt 0:0:56]} 21. Kf3 {[%emt 0:1:14]} Rxe1 {[%emt 0:0:33]} 22. Rxe1 {[%emt 0:0:2]} Rc8 {[%emt 0:0:3]
} 23. a5 {[%emt 0:2:6]} b5 {[%emt 0:2:24]} 24. Ne4 {[%emt 0:0:0]} Nxe4 {[%emt 0:1:10]} 25. Bxe4 {[%emt 0:0:7]} Rc4 {[%emt 0:2:38]} 26. Bd3 {[%emt 0:0:43]} Ra4 {[%emt 0:0:6]} 27. Bxb5 {[%emt 0:1:0]} Rxa5 {[%emt 0:0:2]
} 28. Bd3 {[%emt 0:0:2]} Re5 {[%emt 0:1:7]} 29. Ra1 {[%emt 0:0:0]} Re7 {[%emt 0:0:4]} 30. Ra5 {[%emt 0:0:15]} Rd7 {[%emt 0:0:26]} 31. Rc5 {[%emt 0:1:31]} Bd8 {[%emt 0:0:15]} 32. Rc6 {[%emt 0:0:4]} h5 {[%emt 0:0:0]} 33. b4 {[%emt 0:0:23]} Bb6 {[%emt 0:0:26]} 34. Rc8 {[%emt 0:0:34]} Rd6 {[%emt 0:0:18]} 35. Re8 {[%emt 0:0:14]} Rf6+ {[%emt 0:0:12]} 36. Kg2 {[%emt 0:0:4]
} Re6 {[%emt 0:0:20]} 37. Rxe6 {[%emt 0:0:6]} fxe6 {[%emt 0:0:0]} 38. Kf3 {[%emt 0:0:2]} Kf6 {[%emt 0:0:13]} 39. Ke4 {[%emt 0:0:2]} Bc7 {[%emt 0:0:49]} 40. Bc4 {[%emt 0:0:31]} Bd6 {[%emt 0:0:13]} 41. b5 {[%emt 0:0:4]
} Bc7 {[%emt 0:0:2]} 42. Bd3 {[%emt 0:0:6]} Ba5 {[%emt 0:0:0]} 43. Bc4 {[%emt 0:0:28]} Be1 {[%emt 0:0:20]} 44. Kf3 {[%emt 0:0:3]} Ba5 {[%emt 0:0:13]} 1/2-1/2

[Event "FIDE World Rapid-ch Open 2018"]
[White "Ovchinnikov, Vsevolod"]
[Black "Jumabayev, Rinat"]
[Site "St. Petersburg"]
[Round "4.62"]
[Annotator "ChessBase"]
[Result "0-1"]
[Date "2018.12.26"]
[WhiteElo "2329"]
[BlackElo "2602"]
[PlyCount "143"]
[TimeControl "900+10"]

1. d4 {[%emt 0:0:0]} d5 {[%emt 0:0:0]} 2. c4 {[%emt 0:0:0]} dxc4 {[%emt 0:0:0]
} 3. Nf3 {[%emt 0:0:0]} Nf6 {[%emt 0:0:6]} 4. e3 {[%emt 0:0:0]} e6 {[%emt 0:0:26]} 5. Bxc4 {[%emt 0:0:0]} c5 {[%emt 0:0:6]} 6. 0-0 {[%emt 0:0:11]
} a6 {[%emt 0:0:3]} 7. a4 {[%emt 0:0:14]} Nc6 {[%emt 0:0:4]} 8. Nc3 {[%emt 0:0:44]} Be7 {[%emt 0:0:14]} 9. dxc5 {[%emt 0:1:49]} Qxd1 {[%emt 0:0:17]
} 10. Rxd1 {[%emt 0:0:3]} Bxc5 {[%emt 0:0:1]} 11. Bd2 {[%emt 0:2:43]
} 0-0 {[%emt 0:3:29]} 12. Na2 {[%emt 0:0:58]} Be7 {[%emt 0:0:0]} 13. Nc1 {[%emt 0:3:42]} Bd7 {[%emt 0:2:30]} 14. Nb3 {[%emt 0:1:14]} Rfc8 {[%emt 0:0:5]} 15. Bc3 {[%emt 0:3:20]} Be8 {[%emt 0:0:2]} 16. Nfd2 {[%emt 0:0:41]
} Nd7 {[%emt 0:0:49]} 17. Be2 {[%emt 0:0:20]} Nb4 {[%emt 0:0:0]} 18. Bf3 {[%emt 0:1:21]} Rab8 {[%emt 0:0:49]} 19. a5 {[%emt 0:0:4]} Rc7 {[%emt 0:0:50]} 20. Ra4 {[%emt 0:0:28]} Nd3 {[%emt 0:0:27]} 21. Rc4 {[%emt 0:0:10]
} Bd8 {[%emt 0:1:38]} 22. Rxc7 {[%emt 0:0:17]} Bxc7 {[%emt 0:0:0]} 23. Nc4 {[%emt 0:0:2]} N3e5 {[%emt 0:2:27]} 24. Nxe5 {[%emt 0:0:20]
} Nxe5 {[%emt 0:0:1]} 25. Be4 {[%emt 0:0:12]} Ba4 {[%emt 0:0:39]} 26. Bc2 {[%emt 0:0:1]
} Nc6 {[%emt 0:0:18]} 27. Ra1 {[%emt 0:0:22]} Bb5 {[%emt 0:0:0]} 28. Nd4 {[%emt 0:0:8]} Nxd4 {[%emt 0:0:2]} 29. Bxd4 {[%emt 0:0:1]} Bc6 {[%emt 0:0:38]} 30. Bd3 {[%emt 0:0:14]} Rc8 {[%emt 0:0:6]} 31. Bc3 {[%emt 0:0:11]
} f5 {[%emt 0:0:23]} 32. f4 {[%emt 0:0:8]} Kf7 {[%emt 0:0:4]
} 33. Kf2 {[%emt 0:0:7]} Bd5 {[%emt 0:0:2]} 34. g3 {[%emt 0:0:8]} Bd6 {[%emt 0:0:34]
} 35. Ke2 {[%emt 0:0:19]} h6 {[%emt 0:0:9]} 36. h4 {[%emt 0:0:0]} g5 {[%emt 0:0:5]} 37. hxg5 {[%emt 0:0:3]} hxg5 {[%emt 0:0:1]} 38. Kd2 {[%emt 0:0:10]} Rc7 {[%emt 0:0:6]} 39. Re1 {[%emt 0:0:25]} Rd7 {[%emt 0:0:49]
} 40. Kc2 {[%emt 0:0:10]} Be7 {[%emt 0:0:41]} 41. fxg5 {[%emt 0:0:7]
} Bxg5 {[%emt 0:0:16]} 42. e4 {[%emt 0:0:1]} Bb3+ {[%emt 0:0:0]} 43. Kxb3 {[%emt 0:0:3]} Rxd3 {[%emt 0:0:1]} 44. exf5 {[%emt 0:0:18]} exf5 {[%emt 0:0:1]} 45. Re5 {[%emt 0:0:5]} Kg6 {[%emt 0:0:1]} 46. Re6+ {[%emt 0:0:4]
} Kh5 {[%emt 0:0:2]} 47. Rb6 {[%emt 0:0:2]} Rd7 {[%emt 0:0:0]} 48. Kc4 {[%emt 0:0:22]} Bd8 {[%emt 0:0:17]} 49. Re6 {[%emt 0:0:4]} Bc7 {[%emt 0:0:8]} 50. Rf6 {[%emt 0:0:33]} Kg5 {[%emt 0:0:15]} 51. Rf8 {[%emt 0:0:7]
} Bxg3 {[%emt 0:0:5]} 52. Rg8+ {[%emt 0:0:5]} Kf4 {[%emt 0:0:0]} 53. b4 {[%emt 0:0:16]} Bf2 {[%emt 0:0:14]} 54. b5 {[%emt 0:0:8]} Rc7+ {[%emt 0:0:3]} 55. Kb4 {[%emt 0:0:9]} axb5 {[%emt 0:0:5]} 56. Bd2+ {[%emt 0:0:2]
} Be3 {[%emt 0:0:17]} 57. Be1 {[%emt 0:0:10]} Rc1 {[%emt 0:0:0]} 58. Bh4 {[%emt 0:0:24]} Rb1+ {[%emt 0:0:1]} 59. Kc3 {[%emt 0:0:1]} Ra1 {[%emt 0:0:15]} 60. Kb4 {[%emt 0:0:16]} Rb1+ {[%emt 0:0:6]} 61. Kc3 {[%emt 0:0:1]
} b4+ {[%emt 0:0:4]} 62. Kd3 {[%emt 0:0:21]} Rd1+ {[%emt 0:0:0]} 63. Kc4 {[%emt 0:0:8]} Rd4+ {[%emt 0:0:4]} 64. Kb3 {[%emt 0:0:2]} Kf3 {[%emt 0:0:14]} 65. Be7 {[%emt 0:0:13]} Bd2 {[%emt 0:0:2]} 66. Rb8 {[%emt 0:0:17]
} Rd3+ {[%emt 0:0:2]} 67. Kc2 {[%emt 0:0:9]} Rd7 {[%emt 0:0:0]} 68. Bf6 {[%emt 0:0:11]} f4 {[%emt 0:0:10]} 69. Rc8 {[%emt 0:0:13]} Ke4 {[%emt 0:0:22]} 70. Rc4+ {[%emt 0:0:5]} Kf5 {[%emt 0:0:1]} 71. Bd4 {[%emt 0:0:3]
} Be3 {[%emt 0:0:32]} 72. Rc5+ {[%emt 0:0:19] Ke5} 0-1

[Event "FIDE World Rapid-ch Open 2018"]
[White "Gareyev, Timur"]
[Black "Makarov, Marat"]
[Site "St. Petersburg"]
[Round "4.63"]
[Annotator "ChessBase"]
[Result "1-0"]
[Date "2018.12.26"]
[WhiteElo "2569"]
[BlackElo "2505"]
[PlyCount "55"]
[TimeControl "900+10"]

1. g4 {[%emt 0:0:57]} e5 {[%emt 0:0:14]} 2. Bg2 {[%emt 0:0:3]} d5 {[%emt 0:0:0]} 3. c4 {[%emt 0:0:13]} d4 {[%emt 0:0:12]} 4. b4 {[%emt 0:0:30]} c6 {[%emt 0:0:38]
} 5. Qb3 {[%emt 0:0:4]} Be6 {[%emt 0:0:12]} 6. h3 {[%emt 0:0:0]} Nd7 {[%emt 0:0:5]} 7. Nf3 {[%emt 0:0:19]} a5 {[%emt 0:0:35]} 8. Ba3 {[%emt 0:0:29]
} b5 {[%emt 0:1:1]} 9. bxa5 {[%emt 0:0:1]} bxc4 {[%emt 0:0:0]} 10. Qc2 {[%emt 0:0:5]} Qxa5 {[%emt 0:1:22]} 11. Bxf8 {[%emt 0:0:9]} Kxf8 {[%emt 0:0:4]} 12. 0-0 {[%emt 0:0:31]} f6 {[%emt 0:0:33]} 13. e3 {[%emt 0:0:15]
} d3 {[%emt 0:1:4]} 14. Qd1 {[%emt 0:0:45]} Ne7 {[%emt 0:0:0]} 15. Nc3 {[%emt 0:0:3]} Kf7 {[%emt 0:0:4]} 16. Nh4 {[%emt 0:0:18]} Nc5 {[%emt 0:4:18]} 17. f4 {[%emt 0:2:23]} e4 {[%emt 0:0:48]} 18. f5 {[%emt 0:0:0]} Bd5 {[%emt 0:0:4]} 19. g5 {[%emt 0:0:2]} fxg5 {[%emt 0:0:57]} 20. f6 {[%emt 0:0:14]} gxh4 {[%emt 0:2:10]} 21. Qh5+ {[%emt 0:0:44]} Ng6 {[%emt 0:2:10]
} 22. Nxd5 {[%emt 0:0:7]} Ne6 {[%emt 0:0:21]} 23. Bxe4 {[%emt 0:0:45]
} cxd5 {[%emt 0:0:11]} 24. Bxd5 {[%emt 0:0:5]} Qa6 {[%emt 0:0:0]} 25. Rab1 {[%emt 0:0:18]} Ra7 {[%emt 0:0:18]} 26. Qf5 {[%emt 0:3:9]} Re8 {[%emt 0:0:4]} 27. Rb4 {[%emt 0:0:28]} Qd6 {[%emt 0:0:4]} 28. Rb5 {[%emt 0:1:32]
} 1-0

[Event "FIDE World Rapid-ch Open 2018"]
[White "Huzman, Alexander"]
[Black "Christiansen, Johan-Sebastian"]
[Site "St. Petersburg"]
[Round "4.65"]
[Annotator "ChessBase"]
[Result "0-1"]
[Date "2018.12.26"]
[WhiteElo "2580"]
[BlackElo "2555"]
[PlyCount "36"]
[TimeControl "900+10"]

1. d4 {[%emt 0:0:0]} Nf6 {[%emt 0:0:0]} 2. c4 {[%emt 0:0:0]} c5 {[%emt 0:0:0]} 3. Nf3 {[%emt 0:0:0]} cxd4 {[%emt 0:0:0]} 4. Nxd4 {[%emt 0:0:0]} e5 {[%emt 0:0:0]} 5. Nb5 {[%emt 0:0:1]} d5 {[%emt 0:0:0]} 6. cxd5 {[%emt 0:0:1]
} Bb4+ {[%emt 0:0:0]} 7. N1c3 {[%emt 0:2:17]} 0-0 {[%emt 0:0:0]} 8. a3 {[%emt 0:0:47]} Bc5 {[%emt 0:1:20]} 9. b4 {[%emt 0:0:2]} Bxf2+ {[%emt 0:0:6]
} 10. Kxf2 {[%emt 0:0:11]} a6 {[%emt 0:0:2]} 11. Nd4 {[%emt 0:0:0]} exd4 {[%emt 0:2:13]} 12. Qxd4 {[%emt 0:0:2]} Nc6 {[%emt 0:0:1]} 13. Qc5 {[%emt 0:1:56]} Ne5 {[%emt 0:1:37]} 14. Bf4 {[%emt 0:0:35]} Re8 {[%emt 0:0:55]
} 15. g3 {[%emt 0:2:19]} Bf5 {[%emt 0:0:38]} 16. Bg2 {[%emt 0:0:0]} Rc8 {[%emt 0:0:4]} 17. Qd4 {[%emt 0:0:1]} Rc4 {[%emt 0:0:8]} 18. Qd2 {[%emt 0:0:20]} Qb6+ {[%emt 0:1:1]} 0-1

[Event "FIDE World Rapid-ch Open 2018"]
[White "Levin, Evgeny A."]
[Black "Yakubboev, Nodirbek"]
[Site "St. Petersburg"]
[Round "4.66"]
[Annotator "ChessBase"]
[Result "1/2-1/2"]
[Date "2018.12.26"]
[WhiteElo "2516"]
[BlackElo "2556"]
[PlyCount "65"]
[TimeControl "900+10"]

1. d4 {[%emt 0:0:0]} Nf6 {[%emt 0:0:0]} 2. c4 {[%emt 0:0:0]} e6 {[%emt 0:0:0]} 3. Nf3 {[%emt 0:0:0]} b6 {[%emt 0:0:19]} 4. g3 {[%emt 0:0:0]} Ba6 {[%emt 0:0:24]} 5. Qc2 {[%emt 0:0:0]} Bb7 {[%emt 0:0:45]} 6. Bg2 {[%emt 0:0:0]} c5 {[%emt 0:0:1]} 7. d5 {[%emt 0:0:2]} exd5 {[%emt 0:0:1]} 8. cxd5 {[%emt 0:0:2]} Nxd5 {[%emt 0:0:11]} 9. 0-0 {[%emt 0:0:2]} Nc6 {[%emt 0:0:34]
} 10. a3 {[%emt 0:0:35]} Be7 {[%emt 0:1:58]} 11. Rd1 {[%emt 0:0:0]} Nc7 {[%emt 0:0:19]} 12. Nc3 {[%emt 0:0:2]} 0-0 {[%emt 0:1:0]} 13. Bf4 {[%emt 0:0:2]} Ne6 {[%emt 0:1:6]} 14. e3 {[%emt 0:0:2]} Nxf4 {[%emt 0:1:53]
} 15. exf4 {[%emt 0:0:2]} Bf6 {[%emt 0:1:53]} 16. Ne4 {[%emt 0:3:39]
} d5 {[%emt 0:2:0]} 17. Nfg5 {[%emt 0:0:53]} Bxg5 {[%emt 0:0:0]} 18. Nxg5 {[%emt 0:0:2]} g6 {[%emt 0:0:1]} 19. Bxd5 {[%emt 0:0:42]} Qe7 {[%emt 0:3:1]} 20. Re1 {[%emt 0:0:15]} Qc7 {[%emt 0:0:20]} 21. Rad1 {[%emt 0:0:26]
} Rad8 {[%emt 0:0:49]} 22. Qc4 {[%emt 0:1:47]} Rxd5 23. Rxd5 {[%emt 0:1:56]
} Na5 {[%emt 0:0:20]} 24. Qe4 {[%emt 0:0:38]} h6 {[%emt 0:0:0]} 25. Nf3 {[%emt 0:0:27]} Bxd5 {[%emt 0:0:10]} 26. Qxd5 {[%emt 0:0:2]} Nc6 {[%emt 0:0:4]} 27. h4 {[%emt 0:0:30]} Rd8 {[%emt 0:0:4]} 28. Qe4 {[%emt 0:0:3]
} Nd4 {[%emt 0:0:13]} 29. h5 {[%emt 0:1:8]} Nxf3+ {[%emt 0:0:0]} 30. Qxf3 {[%emt 0:0:1]} gxh5 {[%emt 0:0:13]} 31. Qxh5 {[%emt 0:0:23]} Qd6 {[%emt 0:0:2]} 32. Qh4 {[%emt 0:0:40]} Kf8 {[%emt 0:0:11]} 33. Qh5 {[%emt 0:0:47]
} 1/2-1/2

[Event "FIDE World Rapid-ch Open 2018"]
[White "Saric, Ivan"]
[Black "Nihal Sarin"]
[Site "St. Petersburg"]
[Round "4.67"]
[Annotator "ChessBase"]
[Result "1-0"]
[Date "2018.12.26"]
[WhiteElo "2695"]
[BlackElo "2576"]
[PlyCount "57"]
[TimeControl "900+10"]

1. e4 {[%emt 0:0:0]} e5 {[%emt 0:0:0]} 2. Nf3 {[%emt 0:0:0]} Nc6 {[%emt 0:0:0]
} 3. Bb5 {[%emt 0:0:3]} f5 {[%emt 0:0:14]} 4. Nc3 {[%emt 0:0:0]} fxe4 {[%emt 0:0:5]} 5. Nxe4 {[%emt 0:0:1]} Nf6 {[%emt 0:0:9]} 6. Nxf6+ {[%emt 0:0:20]} Qxf6 {[%emt 0:0:3]} 7. Qe2 {[%emt 0:0:2]} Be7 {[%emt 0:0:13]
} 8. Bxc6 {[%emt 0:0:3]} bxc6 {[%emt 0:0:2]} 9. Qxe5 {[%emt 0:0:26]
} d6 {[%emt 0:0:9]} 10. Qxf6 {[%emt 0:0:9]} Bxf6 {[%emt 0:0:0]} 11. d4 {[%emt 0:2:23]} 0-0 {[%emt 0:0:52]} 12. Be3 {[%emt 0:0:32]} Bg4 {[%emt 0:0:46]} 13. 0-0-0 {[%emt 0:4:26]} Be7 {[%emt 0:0:57]} 14. Rd3 {[%emt 0:0:12]
} Bxf3 {[%emt 0:0:5]} 15. gxf3 {[%emt 0:0:1]} Rxf3 {[%emt 0:0:0]} 16. Rc3 {[%emt 0:0:6]} c5 {[%emt 0:1:5]} 17. dxc5 {[%emt 0:0:44]} dxc5 {[%emt 0:0:7]} 18. Rg1 {[%emt 0:0:13]} Raf8 {[%emt 0:3:39]} 19. Ra3 {[%emt 0:2:24]
} Bd6 {[%emt 0:1:8]} 20. Rg2 {[%emt 0:0:15]} h5 {[%emt 0:0:0]} 21. h4 {[%emt 0:1:8]} Rh3 {[%emt 0:1:58]} 22. Ra4 {[%emt 0:0:8]} Rf7 {[%emt 0:1:15]} 23. Rg5 {[%emt 0:0:16]} Be7 {[%emt 0:1:45]} 24. Rxh5 {[%emt 0:0:15]
} g6 {[%emt 0:0:2]} 25. Rg4 {[%emt 0:0:29]} Kg7 {[%emt 0:0:0]} 26. Rh6 {[%emt 0:0:49]} Rf6 {[%emt 0:0:24]} 27. h5 {[%emt 0:0:0]} Rh1+ {[%emt 0:0:21]} 28. Kd2 {[%emt 0:0:2]} Rd6+ {[%emt 0:0:1]} 29. Ke2 {[%emt 0:0:6]
} 1-0

[Event "FIDE World Rapid-ch Open 2018"]
[White "Gordievsky, Dmitry"]
[Black "Melkumyan, Hrant"]
[Site "St. Petersburg"]
[Round "4.68"]
[Annotator "ChessBase"]
[Result "0-1"]
[Date "2018.12.26"]
[WhiteElo "2614"]
[BlackElo "2670"]
[PlyCount "80"]
[TimeControl "900+10"]

1. d4 {[%emt 0:0:0]} Nf6 {[%emt 0:0:0]} 2. Nf3 {[%emt 0:0:0]} g6 {[%emt 0:0:6]
} 3. Nbd2 {[%emt 0:0:0]} d5 {[%emt 0:0:13]} 4. e3 {[%emt 0:0:0]} Bg7 {[%emt 0:0:15]} 5. b4 {[%emt 0:0:0]} 0-0 {[%emt 0:0:3]} 6. Bb2 {[%emt 0:0:0]
} a5 {[%emt 0:0:56]} 7. b5 {[%emt 0:0:11]} c5 {[%emt 0:0:21]} 8. c4 {[%emt 0:3:34]} Nbd7 {[%emt 0:0:49]} 9. Be2 {[%emt 0:1:47]} b6 {[%emt 0:0:8]
} 10. 0-0 {[%emt 0:0:29]} Bb7 {[%emt 0:0:1]} 11. Rc1 {[%emt 0:0:0]} Rc8 {[%emt 0:0:54]} 12. Qb3 {[%emt 0:1:10]} Re8 {[%emt 0:0:45]} 13. cxd5 {[%emt 0:0:38]} Bxd5 {[%emt 0:0:58]} 14. Bc4 {[%emt 0:0:4]} e6 {[%emt 0:0:2]
} 15. Ba3 {[%emt 0:1:0]} Qc7 {[%emt 0:0:51]} 16. h3 {[%emt 0:0:0]} Qb7 {[%emt 0:2:53]} 17. dxc5 {[%emt 0:0:12]} Nxc5 {[%emt 0:1:39]} 18. Bxd5 {[%emt 0:0:2]} exd5 {[%emt 0:0:22]} 19. Qb1 {[%emt 0:0:50]} Nfe4 {[%emt 0:0:16]
} 20. Bxc5 {[%emt 0:1:52]} bxc5 {[%emt 0:0:14]} 21. Nxe4 {[%emt 0:1:14]
} Rxe4 {[%emt 0:0:2]} 22. Rfd1 {[%emt 0:0:6]} Rb4 {[%emt 0:0:0]} 23. Qd3 {[%emt 0:0:2]} d4 {[%emt 0:0:17]} 24. exd4 {[%emt 0:1:28]} c4 {[%emt 0:0:1]} 25. Qc3 {[%emt 0:0:32]} Qxb5 {[%emt 0:0:3]} 26. Ne5 {[%emt 0:0:16]
} h5 {[%emt 0:1:51]} 27. Rc2 {[%emt 0:0:48]} Qd5 {[%emt 0:0:0]} 28. Rdc1 {[%emt 0:0:17]} Rc7 {[%emt 0:1:14]} 29. Qg3 {[%emt 0:0:21]} Qd6 {[%emt 0:1:45]} 30. Nxc4 {[%emt 0:0:11]} Qxg3 {[%emt 0:0:13]} 31. fxg3 {[%emt 0:0:2]
} Bxd4+ {[%emt 0:0:12]} 32. Kf1 {[%emt 0:0:1]} a4 {[%emt 0:0:0]} 33. Ke2 {[%emt 0:0:13]} Kg7 {[%emt 0:0:21]} 34. Kd3 {[%emt 0:0:21]} Rd7 {[%emt 0:0:9]} 35. Ke2 {[%emt 0:0:12]} Re7+ {[%emt 0:0:2]} 36. Kd3 {[%emt 0:0:7]
} Bf6 {[%emt 0:0:2]} 37. Rd1 {[%emt 0:0:15]} Rb5 {[%emt 0:0:0]} 38. Ne3 {[%emt 0:0:7]} Bg5 {[%emt 0:0:5]} 39. Re1 {[%emt 0:0:6]} Rb8 {[%emt 0:0:27]} 40. Ree2 {[%emt 0:0:10]} Rd8+ {[%emt 0:0:5] Kd4} 0-1

[Event "FIDE World Rapid-ch Open 2018"]
[White "Sanikidze, Tornike"]
[Black "Jones, Gawain C B"]
[Site "St. Petersburg"]
[Round "4.69"]
[Annotator "ChessBase"]
[Result "1-0"]
[Date "2018.12.26"]
[WhiteElo "2507"]
[BlackElo "2682"]
[PlyCount "83"]
[TimeControl "900+10"]

1. d4 {[%emt 0:0:0]} Nf6 {[%emt 0:0:0]} 2. c4 {[%emt 0:0:0]} g6 {[%emt 0:0:0]} 3. f3 {[%emt 0:0:0]} c5 {[%emt 0:0:0]} 4. d5 {[%emt 0:0:0]} Bg7 {[%emt 0:0:0]
} 5. Nc3 {[%emt 0:0:2]} 0-0 {[%emt 0:0:2]} 6. e4 {[%emt 0:0:0]} d6 {[%emt 0:0:2]} 7. Nge2 {[%emt 0:0:5]} e6 {[%emt 0:0:3]} 8. Ng3 {[%emt 0:0:2]
} exd5 {[%emt 0:0:4]} 9. cxd5 {[%emt 0:0:2]} Nh5 {[%emt 0:0:0]} 10. Nxh5 {[%emt 0:0:36]} gxh5 {[%emt 0:0:1]} 11. Be3 {[%emt 0:0:7]} Nd7 {[%emt 0:0:26]} 12. Qd2 {[%emt 0:0:11]} Ne5 {[%emt 0:0:6]} 13. Be2 {[%emt 0:0:10]
} f5 {[%emt 0:0:5]} 14. 0-0 {[%emt 0:0:18]} Ng6 {[%emt 0:0:0]} 15. f4 {[%emt 0:5:37]} h4 {[%emt 0:0:31]} 16. Bd3 {[%emt 0:0:12]} Qf6 {[%emt 0:1:43]
} 17. e5 {[%emt 0:1:25]} dxe5 {[%emt 0:0:2]} 18. fxe5 {[%emt 0:0:8]
} Nxe5 {[%emt 0:0:10]} 19. Bxc5 {[%emt 0:0:2]} Re8 {[%emt 0:0:0]} 20. Nb5 {[%emt 0:4:49]} h3 {[%emt 0:2:59]} 21. Nc7 {[%emt 0:1:37]} hxg2 {[%emt 0:0:5]} 22. Qxg2 {[%emt 0:0:9]} Rd8 {[%emt 0:0:9]} 23. Be2 {[%emt 0:1:18]
} b6 {[%emt 0:0:10]} 24. Be3 {[%emt 0:0:2]} Bb7 {[%emt 0:0:0]} 25. Nxa8 {[%emt 0:0:2]} Bxd5 {[%emt 0:1:13]} 26. Qg5 {[%emt 0:0:1]} Qxg5+ {[%emt 0:0:9]} 27. Bxg5 {[%emt 0:0:2]} Rxa8 {[%emt 0:0:1]} 28. Rxf5 {[%emt 0:0:15]} Be6 {[%emt 0:1:25]} 29. Rf2 {[%emt 0:0:19]} Ng6 {[%emt 0:0:0]} 30. Bf6 {[%emt 0:1:56]} Bh6 {[%emt 0:0:2]} 31. Bf3 {[%emt 0:0:1]} Rf8 {[%emt 0:0:7]} 32. Bd4 {[%emt 0:0:12]} Nh4 {[%emt 0:0:22]} 33. Be4 {[%emt 0:0:16]
} Re8 {[%emt 0:1:10]} 34. Re1 {[%emt 0:0:10]} Ng6 {[%emt 0:0:0]} 35. Bd5 {[%emt 0:0:28]} Bxd5 {[%emt 0:0:55]} 36. Rxe8+ {[%emt 0:0:2]} Bf8 {[%emt 0:0:1]} 37. b3 {[%emt 0:0:16]} Bf7 {[%emt 0:0:11]} 38. Ra8 {[%emt 0:0:1]
} Bd5 {[%emt 0:0:1]} 39. Rxa7 {[%emt 0:0:19]} b5 {[%emt 0:0:0]} 40. Rd7 {[%emt 0:0:8]} Ne7 {[%emt 0:0:28]} 41. Rxf8+ {[%emt 0:0:9]} Kxf8 {[%emt 0:0:2]} 42. Bc5 {[%emt 0:0:1]} 1-0